[Event "EICC 2025"]
[Site "Eforie-Nord"]
[Date "2025.03.15"]
[Round "1.28"]
[White "Yilmaz, Baver"]
[Black "Kadric, Denis"]
[Result "1/2-1/2"]
[Annotator "ChessBase"]
[ECO "B06"]
[WhiteElo "2201"]
[BlackElo "2542"]
[PlyCount "86"]
[EventDate "2025.03.14"]
[EventType "swiss"]
[EventCountry "ROU"]
[SourceTitle "playchess.com"]
[Source "ChessBase"]
[SourceQuality "1"]
[TimeControl "40/5400+30:1800+30"]

1. e4 {[%emt 0:00:29]} d6 {[%emt 0:00:04]} 2. d4 {[%emt 0:00:12]} g6 {[%emt 0:00:05]} 3. Nc3 {[%emt 0:01:17]} a6 {[%emt 0:00:25]} 4. h4 {[%emt 0:02:29]} Nf6 {[%emt 0:02:33]} 5. Be3 {[%emt 0:03:03]} Bg7 {[%emt 0:01:47]} 6. Qd2 {[%emt 0:01:45]} b5 {[%emt 0:03:26]} 7. f3 {[%emt 0:02:54]} h5 {[%emt 0:00:28]} 8. O-O-O {[%emt 0:01:37]} c6 {[%emt 0:03:25]} 9. Nh3 {[%emt 0:06:50]} Bxh3 {[%emt 0:00:29]} 10. Rxh3 {[%emt 0:01:35]} Nbd7 {[%emt 0:00:06]} 11. Kb1 {[%emt 0:03:36]} Qc7 {[%emt 0:01:54]} 12. Rh1 {[%emt 0:03:36]} Rb8 {[%emt 0:01:07]} 13. g3 {[%emt 0:03:06]} a5 {[%emt 0:04:22]} 14. Bd3 {[%emt 0:04:49]} e5 {[%emt 0:13:42]} 15. Rhe1 {[%emt 0:06:21]} O-O {[%emt 0:01:44]} 16. dxe5 {[%emt 0:02:49]} Nxe5 {[%emt 0:01:25]} 17. Be2 {[%emt 0:03:26]} b4 {[%emt 0:06:27]} 18. Na4 {[%emt 0:01:54]} d5 {[%emt 0:03:18]} 19. exd5 {[%emt 0:05:04]} Nxd5 {[%emt 0:00:02]} 20. Bd4 {[%emt 0:06:12]} Rfd8 {[%emt 0:01:27]} 21. Ka1 {[%emt 0:05:47]} Nd7 {[%emt 0:24:13]} 22. Bxg7 {[%emt 0:03:18]} Kxg7 {[%emt 0:00:02]} 23. f4 {[%emt 0:02:16]} N7f6 {[%emt 0:03:25]} 24. Qc1 {[%emt 0:04:32]} c5 {[%emt 0:03:05]} 25. Bc4 {[%emt 0:03:23]} Nb6 {[%emt 0:08:30]} 26. Rxd8 {[%emt 0:04:25]} Qxd8 {[%emt 0:01:02]} 27. Nxb6 {[%emt 0:00:12]} Rxb6 {[%emt 0:00:01]} 28. f5 {[%emt 0:01:35]} Qd4 {[%emt 0:02:50]} 29. Be2 {[%emt 0:04:26]} Rd6 {[%emt 0:05:55]} 30. fxg6 {[%emt 0:01:34]} fxg6 {[%emt 0:00:01]} 31. Rd1 {[%emt 0:01:45]} Qe5 {[%emt 0:00:08]} 32. Rxd6 {[%emt 0:01:12]} Qxd6 {[%emt 0:00:01]} 33. Qe3 {[%emt 0:01:45]} Nd7 {[%emt 0:02:22]} 34. Kb1 {[%emt 0:01:40]} Ne5 {[%emt 0:05:19]} 35. Kc1 {[%emt 0:02:49]} Qd5 {[%emt 0:00:01]} 36. b3 {[%emt 0:01:18]} Qd4 {[%emt 0:00:13]} 37. Qxd4 {[%emt 0:01:37]} cxd4 {[%emt 0:00:02]} 38. Kd2 {[%emt 0:00:39]} Kf6 {[%emt 0:00:03]} 39. Bd3 {[%emt 0:01:11]} g5 {[%emt 0:02:57]} 40. Be2 {[%emt 0:00:52]} Kg6 {[%emt 0:00:14]} 41. Ke1 {[%emt 0:30:38]} Kh6 {[%emt 0:31:23]} 42. Kf2 {[%emt 0:00:42]} Kg6 {[%emt 0:00:18]} 43. Ke1 {[%emt 0:00:33]} Nd7 {[%emt 0:00:00]} 1/2-1/2

[Event "EICC 2025"]
[Site "Eforie-Nord"]
[Date "2025.03.15"]
[Round "1.29"]
[White "Can, Isik"]
[Black "Tashkinova, Sofiia"]
[Result "1-0"]
[Annotator "ChessBase"]
[ECO "C02"]
[WhiteElo "2539"]
[BlackElo "2197"]
[PlyCount "93"]
[EventDate "2025.03.14"]
[EventType "swiss"]
[EventCountry "ROU"]
[SourceTitle "playchess.com"]
[Source "ChessBase"]
[SourceQuality "1"]
[TimeControl "40/5400+30:1800+30"]

1. e4 {[%emt 0:00:14]} e6 {[%emt 0:00:09]} 2. d4 {[%emt 0:00:05]} d5 {[%emt 0:00:05]} 3. e5 {[%emt 0:00:05]} c5 {[%emt 0:00:12]} 4. c3 {[%emt 0:00:24]} Nc6 {[%emt 0:00:06]} 5. Nf3 {[%emt 0:00:14]} Nge7 {[%emt 0:00:29]} 6. Na3 {[%emt 0:01:29]} Nf5 {[%emt 0:00:14]} 7. Nc2 {[%emt 0:00:36]} Be7 {[%emt 0:00:36]} 8. Bd3 {[%emt 0:14:18]} c4 {[%emt 0:00:19]} 9. Bxf5 {[%emt 0:01:16]} exf5 {[%emt 0:00:08]} 10. h4 {[%emt 0:01:56]} Be6 {[%emt 0:03:07]} 11. Bg5 {[%emt 0:02:12]} h6 {[%emt 0:05:56]} 12. Bxe7 {[%emt 0:01:40]} Qxe7 {[%emt 0:01:08]} 13. Qd2 {[%emt 0:02:43]} b5 {[%emt 0:11:00]} 14. h5 {[%emt 0:03:28]} a5 {[%emt 0:02:54]} 15. a3 {[%emt 0:01:51]} Kd7 {[%emt 0:06:45]} 16. Qf4 {[%emt 0:05:08]} Qf8 {[%emt 0:05:35]} 17. Nh4 {[%emt 0:09:15]} Ne7 {[%emt 0:02:23]} 18. Qd2 {[%emt 0:14:02]} g5 {[%emt 0:06:29]} 19. hxg6 {[%emt 0:01:20]} fxg6 {[%emt 0:00:17]} 20. f4 {[%emt 0:00:04]} g5 {[%emt 0:05:26]} 21. Nf3 {[%emt 0:11:19]} gxf4 {[%emt 0:08:12]} 22. Qxf4 {[%emt 0:01:07]} Ng6 {[%emt 0:01:22]} 23. Qd2 {[%emt 0:00:48]} f4 {[%emt 0:12:16]} 24. Nh4 {[%emt 0:03:42]} Rg8 {[%emt 0:01:12]} 25. O-O-O {[%emt 0:11:49]} Ne7 {[%emt 0:01:48]} 26. Rdf1 {[%emt 0:04:18]} Rg4 {[%emt 0:03:31]} 27. g3 {[%emt 0:03:27]} Rxg3 {[%emt 0:03:54]} 28. Ng2 {[%emt 0:00:15]} f3 {[%emt 0:02:34]} 29. Nf4 {[%emt 0:00:02]} Qf5 {[%emt 0:05:23]} 30. Rxh6 {[%emt 0:01:37]} Bg8 {[%emt 0:02:58]} 31. Rf6 {[%emt 0:03:34]} Qg5 {[%emt 0:03:19]} 32. Ne3 {[%emt 0:01:30]} Rg1 {[%emt 0:03:47]} 33. Qf2 {[%emt 0:00:13]} Rxf1+ {[%emt 0:01:14]} 34. Qxf1 {[%emt 0:00:01]} Bh7 {[%emt 0:01:48]} 35. Qh3+ {[%emt 0:01:19]} Bf5 {[%emt 0:00:38]} 36. Nxf5 {[%emt 0:00:26]} Qg1+ {[%emt 0:00:38]} 37. Kc2 {[%emt 0:00:25]} Qf2+ {[%emt 0:00:12]} 38. Kb1 {[%emt 0:00:05]} Qg1+ {[%emt 0:00:50]} 39. Ka2 {[%emt 0:00:16]} b4 {[%emt 0:00:09]} 40. Nxe7+ {[%emt 0:00:12]} Ke8 {[%emt 0:00:30]} 41. Qh8+ {[%emt 0:30:18]} Kd7 {[%emt 0:30:20]} 42. Rd6+ {[%emt 0:00:05]} Kc7 {[%emt 0:00:54]} 43. Nfxd5+ {[%emt 0:00:06]} Kb7 {[%emt 0:00:00]} 44. Rb6+ {[%emt 0:00:00]} Ka7 {[%emt 0:00:00]} 45. Qxa8+ {[%emt 0:00:00]} Kxa8 {[%emt 0:00:00]} 46. Nc7+ {[%emt 0:00:00]} Ka7 {[%emt 0:00:00]} 47. Nc8# {[%emt 0:00:00]} 1-0

[Event "EICC 2025"]
[Site "Eforie-Nord"]
[Date "2025.03.15"]
[Round "1.29"]
[White "Brzezina, Piotr"]
[Black "Svane, Rasmus"]
[Result "1/2-1/2"]
[Annotator "TA"]
[ECO "B33"]
[WhiteElo "2298"]
[BlackElo "2627"]
[PlyCount "67"]
[EventDate "2025.03.14"]
[EventType "swiss"]
[EventCountry "ROU"]
[SourceTitle "playchess.com"]
[Source "ChessBase"]
[SourceQuality "1"]
[TimeControl "40/5400+30:1800+30"]

{[%evp 20,67,25,0,0,8,16,0,0,0,27,0,0,0,0,0,0,0,-10,-15,-16,-43,-34,-50,-9,-33,-34,-69,-77,-66,-56,-59,-44,-59,-69,-87,-89,-100,-91,-83,-84,-89,0,0,0,0,0,0,0,0]} 1. e4 {[%emt 0:00:04]} c5 {[%emt 0:00:06]} 2. Nf3 {[%emt 0:00:07][%cal Bg1f3,Bf3d4,Bd4b5,Bb5a3,Ba3c2][%mdl 32]} Nc6 {[%emt 0:00:06]} 3. d4 {[%emt 0:01:05]} cxd4 {[%emt 0:00:08]} 4. Nxd4 {[%emt 0:00:06]} Nf6 {[%emt 0:00:07]} 5. Nc3 {[%emt 0:00:43]} e5 {[%emt 0:00:06]} 6. Ndb5 {[%emt 0:00:19]} d6 {[%emt 0:00:09]} 7. Bg5 {[%emt 0:01:41]} a6 {[%emt 0:00:11]} 8. Na3 {[%emt 0:00:46]} b5 {[%emt 0:00:27][%cal Bb7b5,Bb5b4][%mdl 32]} 9. Nd5 {[%emt 0:00:56]} Be7 {[%emt 0:00:15]} 10. Bxf6 {[%emt 0:00:35]} Bxf6 {[%emt 0:00:06]} 11. c4 {[%emt 0:06:20]} b4 $1 {[%emt 0:00:13] B33: Sicilian: Pelikan and Sveshnikov Variations.} 12. Nc2 {[%emt 0:00:05]} O-O {[%emt 0:07:06]} 13. h4 {[%emt 0:07:04]} a5 {[%emt 0:02:16]} 14. Qf3 {[%emt 0:03:08]} Be6 {[%emt 0:09:16]} (14... Bxh4 $2 15. Qh5 $18) 15. Rd1 {[%emt 0:06:04]} (15. Nxf6+ {simplifies} Qxf6 16. Qxf6 gxf6 17. Ne3) 15... Be7 {[%emt 0:09:30]} (15... Bxh4 $2 {loses.} 16. Qh5 $18) 16. Be2 $146 {[%emt 0:23:23]} (16. Bd3 a4 17. b3 axb3 18. axb3 Bxd5 19. cxd5 Nd4 20. Nxd4 exd4 21. g3 Ra2 22. O-O {½-½ Nepomniachtchi,I (2632)-Ni,H (2701) CHN-RUS Summit Men 6th Blitz 2009 (1)}) 16... Ra7 {[%emt 0:08:27]} 17. Qg3 {[%emt 0:19:24]} Qb8 {[%emt 0:09:41]} 18. O-O {[%emt 0:06:47]} a4 {[%emt 0:15:37]} 19. Nce3 {[%emt 0:03:23]} Qd8 {[%emt 0:12:35]} (19... Nd4 20. Rxd4 exd4 21. Nf5 Bxf5 22. exf5 Qd8) 20. h5 {[%emt 0:06:50]} Bh4 {[%emt 0:01:23]} 21. Qh2 {[%emt 0:01:52][%cal Oh5h6]} Bg5 {[%emt 0:08:55]} 22. g3 {[%emt 0:02:53]} Bxe3 {[%emt 0:03:23]} (22... Nd4 {is interesting.} 23. f4 Bh6 24. Ng4 Qc8) 23. Nxe3 {[%emt 0:00:46]} Nd4 {[%emt 0:02:40]} 24. f4 {[%emt 0:00:48]} Qb6 {[%emt 0:01:46] [#] Threatens to win with ...exf4.} 25. Kh1 $1 {[%emt 0:05:20]} exf4 {[%emt 0:04:21]} 26. Rxf4 {[%emt 0:02:18]} h6 {[%emt 0:01:12]} 27. Qf2 {[%emt 0:00:37] Black must now prevent Nf5.} Nxe2 {[%emt 0:01:19]} 28. Qxe2 {[%emt 0:00:02]} Re8 {[%emt 0:01:33]} 29. Qd3 {[%emt 0:00:37][%cal Od3d4]} Qc5 {[%emt 0:00:30]} 30. Nd5 {[%emt 0:00:52]} a3 {[%emt 0:01:15]} (30... Rb7 $17 31. b3 a3) 31. b3 $11 {[%emt 0:00:11] The position is equal.} Bxd5 {[%emt 0:00:10]} 32. Qxd5 {[%emt 0:00:27]} Rae7 {[%emt 0:00:20]} 33. Kg2 {[%emt 0:00:52]} Qxd5 {[%emt 0:01:09]} 34. Rxd5 {[%emt 0:00:07] Weighted Error Value: White=0.09 (flawless) /Black=0.08 (flawless)   Mistake:       	---       	Black=1      Inaccurate:     	White=3     	Black=2      OK:         	White=6     	Black=8      Best:        	White=2     	---        Strong:       	White=1     	---} 1/2-1/2

[Event "EICC 2025"]
[Site "Eforie-Nord"]
[Date "2025.03.15"]
[Round "1.30"]
[White "Rodshtein, Maxim"]
[Black "Gombocz, Ferenc Jr."]
[Result "1-0"]
[Annotator "TA"]
[ECO "A07"]
[WhiteElo "2623"]
[BlackElo "2297"]
[PlyCount "83"]
[EventDate "2025.03.14"]
[EventType "swiss"]
[EventCountry "ROU"]
[SourceTitle "playchess.com"]
[Source "ChessBase"]
[SourceQuality "1"]
[TimeControl "40/5400+30:1800+30"]

{[%evp 9,83,14,14,0,0,0,12,24,25,20,16,21,27,33,41,33,36,38,62,67,110,93,91,94,125,116,108,115,112,114,224,218,210,220,225,227,220,221,222,221,217,239,227,216,222,226,318,206,256,256,264,256,256,256,277,275,390,385,385,376,403,370,387,385,475,490,606,606,572,551,2254,1995,1541,1656,29937,12847]} 1. Nf3 {[%emt 0:00:05]} d5 {[%emt 0:00:07]} 2. g3 {[%emt 0:00:18]} Bg4 {[%emt 0:00:13]} 3. Bg2 {[%emt 0:00:12]} Nd7 {[%emt 0:00:08]} 4. h3 {[%emt 0:00:34]} Bxf3 {[%emt 0:00:45]} 5. Bxf3 {[%emt 0:00:08]} c6 {[%emt 0:00:25]} 6. d3 {[%emt 0:01:54] A07: Réti Opening: New York and Capablanca Systems.} e5 {[%emt 0:01:42]} 7. e4 {[%emt 0:00:48]} dxe4 {[%emt 0:01:29]} 8. dxe4 {[%emt 0:00:23] The position is equal.} Bc5 {[%emt 0:00:31]} 9. Nd2 {[%emt 0:02:20]} Qc7 $146 {[%emt 0:06:07]} (9... Ngf6 10. O-O Qc7 11. a4 O-O 12. Qe2 Rfd8 13. Nb3 Be7 14. Be3 Nf8 15. c3 Ne6 {1-0 Rodshtein,M (2613)-Kunin,V (2528) AUT-chT 2425 2024 (2.4)}) 10. Qe2 {[%emt 0:02:52]} Ne7 {[%emt 0:05:22]} 11. a4 {[%emt 0:14:18]} a5 {[%emt 0:06:36]} 12. O-O {[%emt 0:05:44]} O-O {[%emt 0:09:53]} 13. Kg2 {[%emt 0:02:21]} Ba7 {[%emt 0:15:29]} 14. Nc4 {[%emt 0:03:30]} Rfb8 {[%emt 0:05:21] Black is on the road to losing.} 15. Bd2 {[%emt 0:07:35] White is more active.} Bd4 {[%emt 0:01:34]} 16. Rfd1 {[%emt 0:02:57]} Nf8 {[%emt 0:02:52]} 17. Qe1 {[%emt 0:13:36]} b6 {[%emt 0:01:23]} 18. Bg4 {[%emt 0:00:43]} Neg6 {[%emt 0:13:07]} 19. h4 {[%emt 0:04:24]} b5 {[%emt 0:02:54]} (19... Ne6 $16) 20. Bxa5 $18 {[%emt 0:01:47]} Qe7 {[%emt 0:00:19] [#]} 21. axb5 {[%emt 0:01:06]} cxb5 {[%emt 0:00:52]} 22. Ne3 {[%emt 0:01:52]} Nxh4+ {[%emt 0:01:58]} 23. gxh4 {[%emt 0:00:28]} Qxh4 {[%emt 0:00:06][%cal Od4e3] ...Bxe3! is the strong threat.} 24. f3 {[%emt 0:03:19]} Qxe1 {[%emt 0:03:45]} 25. Rxe1 {[%emt 0:00:07]} Bxb2 {[%emt 0:00:26] [#]} 26. Rab1 {[%emt 0:01:21]} Bd4 {[%emt 0:00:41]} 27. Bb4 {[%emt 0:03:27]} Ng6 {[%emt 0:01:10]} (27... Ra2 $142 28. Kg3 Ng6) 28. Nf5 {[%emt 0:02:29]} Ra2 {[%emt 0:02:02]} 29. Nxd4 {[%emt 0:01:36]} exd4 {[%emt 0:00:07]} 30. Kg3 {[%emt 0:01:04]} Rxc2 {[%emt 0:02:48]} 31. Red1 {[%emt 0:00:59]} Rc4 {[%emt 0:02:29]} 32. f4 {[%emt 0:03:41]} Re8 {[%emt 0:02:37]} (32... d3 $142 33. Bf3 (33. Rxd3 Rxe4 34. Bd6 Rd8 $18) 33... f5 34. exf5 (34. Rxd3 fxe4 35. Bd6 Rd8 $17) 34... Nxf4) 33. Be2 {[%emt 0:01:43] This pair of bishops is nice.} Rc2 {[%emt 0:01:30][%cal Bc4c2,Bc2a2,Ba2a8,Ba8d8,Bd8d6][%mdl 32]} 34. Bd3 {[%emt 0:00:20]} (34. Bxb5 Rxe4 35. Bd2 Re7 $16) 34... Ra2 {[%emt 0:00:16]} 35. Rd2 {[%emt 0:02:13]} (35. Bxb5 Rxe4 36. Re1 Re3+ 37. Rxe3 dxe3 $16) (35. e5 h5 36. Rd2 (36. Bxb5 h4+ 37. Kf3 Nxe5+ 38. fxe5 Rxe5 $18) 36... Rxd2 37. Bxd2 Nxe5 $18) 35... Raa8 {[%emt 0:00:45]} 36. Bd6 {[%emt 0:01:21]} (36. Bxb5 Rxe4 37. Bc6 Re3+ 38. Kf2 Rc8 $18) ({Resist} 36. e5 f6 37. Be4 (37. Bxb5 fxe5 38. f5 Nf4 $18) 37... fxe5 $18) 36... Rad8 {[%emt 0:03:38]} 37. e5 {[%emt 0:00:49]} ({Weaker is} 37. Bxb5 Rxe4 $11) 37... f6 {[%emt 0:00:21]} 38. Bxb5 {[%emt 0:01:02]} fxe5 {[%emt 0:01:28]} 39. Bxe8 {[%emt 0:00:08]} Rxd6 {[%emt 0:01:04]} 40. fxe5 {[%emt 0:00:53]} Nxe5 {[%emt 0:00:08]} 41. Rb8 {[%emt 0:30:31] White wants to mate with Bh5+.} g5 {[%emt 0:30:16]} 42. Re2 {[%emt 0:00:19] Weighted Error Value: White=0.07 (flawless) /Black=0.60  Mistake:       	---       	Black=3      Inaccurate:     	White=1     	Black=2      OK:         	White=19    	Black=14     Best:        	White=2     	---} 1-0

[Event "EICC 2025"]
[Site "Eforie-Nord"]
[Date "2025.03.15"]
[Round "1.30"]
[White "Nikolaidis, Konstantinos"]
[Black "Horvath, Dominik"]
[Result "0-1"]
[Annotator "ChessBase"]
[ECO "B45"]
[WhiteElo "2195"]
[BlackElo "2538"]
[PlyCount "80"]
[EventDate "2025.03.14"]
[EventType "swiss"]
[EventCountry "ROU"]
[SourceTitle "playchess.com"]
[Source "ChessBase"]
[SourceQuality "1"]
[TimeControl "40/5400+30:1800+30"]

1. e4 {[%emt 0:00:13]} c5 {[%emt 0:00:14]} 2. Nf3 {[%emt 0:00:12]} e6 {[%emt 0:00:11]} 3. d4 {[%emt 0:01:09]} cxd4 {[%emt 0:00:05]} 4. Nxd4 {[%emt 0:00:05]} Nf6 {[%emt 0:00:10]} 5. Nc3 {[%emt 0:00:20]} Nc6 {[%emt 0:00:06]} 6. Ndb5 {[%emt 0:04:48]} Bc5 {[%emt 0:00:28]} 7. Bf4 {[%emt 0:01:09]} O-O {[%emt 0:00:09]} 8. Bc7 {[%emt 0:00:32]} Qe7 {[%emt 0:00:06]} 9. Bd6 {[%emt 0:01:39]} Bxd6 {[%emt 0:00:05]} 10. Qxd6 {[%emt 0:00:49]} Qd8 {[%emt 0:00:08]} 11. O-O-O {[%emt 0:13:57]} a6 {[%emt 0:00:06]} 12. Nd4 {[%emt 0:01:45]} Ne7 {[%emt 0:00:05]} 13. Qg3 {[%emt 0:06:10]} b5 {[%emt 0:00:32]} 14. e5 {[%emt 0:01:46]} Nfd5 {[%emt 0:00:11]} 15. Nxd5 {[%emt 0:04:47]} Nxd5 {[%emt 0:00:12]} 16. Nf5 {[%emt 0:01:06]} exf5 {[%emt 0:00:06]} 17. Rxd5 {[%emt 0:00:04]} Bb7 {[%emt 0:00:03]} 18. Rd2 {[%emt 0:02:55]} Qa5 {[%emt 0:02:45]} 19. Qb3 {[%emt 0:08:01]} f4 {[%emt 0:04:34]} 20. Be2 {[%emt 0:13:41]} Rae8 {[%emt 0:13:11]} 21. Bf3 {[%emt 0:08:08]} Bxf3 {[%emt 0:00:12]} 22. gxf3 {[%emt 0:00:12]} Rxe5 {[%emt 0:00:23]} 23. Rxd7 {[%emt 0:01:34]} Re1+ {[%emt 0:00:05]} 24. Rd1 {[%emt 0:02:08]} Re2 {[%emt 0:01:08]} 25. Rhf1 {[%emt 0:04:53]} Qb6 {[%emt 0:07:51]} 26. Qb4 {[%emt 0:07:11]} Qc6 {[%emt 0:05:58]} 27. Qc3 {[%emt 0:04:46]} Qxc3 {[%emt 0:15:25]} 28. bxc3 {[%emt 0:00:02]} f6 {[%emt 0:04:58]} 29. Rd2 {[%emt 0:02:04]} Rfe8 {[%emt 0:03:10]} 30. Rfd1 {[%emt 0:02:35]} Rxd2 {[%emt 0:00:29]} 31. Rxd2 {[%emt 0:02:58]} Re1+ {[%emt 0:00:10]} 32. Kb2 {[%emt 0:01:30]} Rh1 {[%emt 0:00:04]} 33. Rd6 {[%emt 0:01:03]} Rxh2 {[%emt 0:04:37]} 34. Rxa6 {[%emt 0:00:11]} Rxf2 {[%emt 0:00:37]} 35. Rb6 {[%emt 0:01:27]} Rxf3 {[%emt 0:00:33]} 36. Rxb5 {[%emt 0:00:09]} Re3 {[%emt 0:00:10]} 37. a4 {[%emt 0:00:34]} f3 {[%emt 0:02:12]} 38. Rd5 {[%emt 0:01:44]} Kf7 {[%emt 0:00:44]} 39. Rd1 {[%emt 0:00:58]} g5 {[%emt 0:00:23]} 40. Kb3 {[%emt 0:00:38]} g4 {[%emt 0:00:06]} 0-1

[Event "EICC 2025"]
[Site "Eforie-Nord"]
[Date "2025.03.15"]
[Round "1.31"]
[White "Pantsulaia, Levan"]
[Black "Sitbon, Itay"]
[Result "1-0"]
[Annotator "ChessBase"]
[ECO "D02"]
[WhiteElo "2538"]
[BlackElo "2195"]
[PlyCount "65"]
[EventDate "2025.03.14"]
[EventType "swiss"]
[EventCountry "ROU"]
[SourceTitle "playchess.com"]
[Source "ChessBase"]
[SourceQuality "1"]
[TimeControl "40/5400+30:1800+30"]

1. Nf3 {[%emt 0:00:05]} Nc6 {[%emt 0:00:09]} 2. d4 {[%emt 0:01:05]} d5 {[%emt 0:00:05]} 3. e3 {[%emt 0:00:24]} Bg4 {[%emt 0:04:56]} 4. Bb5 {[%emt 0:08:06]} e6 {[%emt 0:04:07]} 5. Nbd2 {[%emt 0:01:36]} Nge7 {[%emt 0:05:26]} 6. h3 {[%emt 0:02:44]} Bxf3 {[%emt 0:05:34]} 7. Nxf3 {[%emt 0:00:42]} a6 {[%emt 0:00:18]} 8. Be2 {[%emt 0:04:34]} g6 {[%emt 0:03:48]} 9. b3 {[%emt 0:08:07]} Bg7 {[%emt 0:00:43]} 10. Bb2 {[%emt 0:00:07]} O-O {[%emt 0:00:53]} 11. c4 {[%emt 0:03:32]} Nb8 {[%emt 0:11:32]} 12. Qd2 {[%emt 0:08:40]} dxc4 {[%emt 0:02:34]} 13. bxc4 {[%emt 0:03:04]} c5 {[%emt 0:00:23]} 14. O-O {[%emt 0:00:14]} cxd4 {[%emt 0:01:59]} 15. exd4 {[%emt 0:00:24]} Nbc6 {[%emt 0:04:19]} 16. Rfd1 {[%emt 0:00:39]} Qd7 {[%emt 0:09:50]} 17. d5 {[%emt 0:05:01]} Bxb2 {[%emt 0:02:12]} 18. Qxb2 {[%emt 0:00:07]} exd5 {[%emt 0:06:02]} 19. cxd5 {[%emt 0:00:12]} Nxd5 {[%emt 0:00:23]} 20. Bc4 {[%emt 0:00:38]} Nce7 {[%emt 0:00:31]} 21. Ne5 {[%emt 0:02:22]} Qe6 {[%emt 0:03:05]} 22. Ng4 {[%emt 0:01:37]} f6 {[%emt 0:04:12]} 23. Qxb7 {[%emt 0:01:10]} Rad8 {[%emt 0:01:26]} 24. Re1 {[%emt 0:00:33]} Rd7 {[%emt 0:01:27]} 25. Rxe6 {[%emt 0:00:14]} Rxb7 {[%emt 0:00:02]} 26. Nxf6+ {[%emt 0:01:13]} Kf7 {[%emt 0:01:36]} 27. Rd6 {[%emt 0:00:37]} Rb2 {[%emt 0:03:06]} 28. Nxd5 {[%emt 0:00:21]} Nxd5 {[%emt 0:00:23]} 29. Bxd5+ {[%emt 0:00:17]} Ke7 {[%emt 0:00:01]} 30. Rxa6 {[%emt 0:01:04]} Rfxf2 {[%emt 0:00:11]} 31. Rc1 {[%emt 0:00:40]} Rfd2 {[%emt 0:01:40]} 32. Rc7+ {[%emt 0:00:17]} Kd8 {[%emt 0:00:01]} 33. Rxh7 {[%emt 0:00:11]} 1-0

[Event "EICC 2025"]
[Site "Eforie-Nord"]
[Date "2025.03.15"]
[Round "1.31"]
[White "Stepanencu, Nicodim-Cosmin"]
[Black "Maurizzi, Marc`Andria"]
[Result "0-1"]
[Annotator "TA"]
[ECO "A50"]
[WhiteElo "2297"]
[BlackElo "2622"]
[PlyCount "74"]
[EventDate "2025.03.14"]
[EventType "swiss"]
[EventCountry "ROU"]
[SourceTitle "playchess.com"]
[Source "ChessBase"]
[SourceQuality "1"]
[TimeControl "40/5400+30:1800+30"]

{[%evp 9,74,39,39,3,15,0,-2,-2,0,-8,0,0,0,-21,0,-28,-10,-31,-25,-14,-17,-78,-75,-45,-74,-50,-63,-75,-52,-48,-56,-95,-28,-135,-120,-113,-113,-103,-87,-116,-107,-180,-179,-187,-150,-254,-243,-243,-219,-504,-491,-495,-504,-458,-474,-631,-512,-544,-521,-668,-608,-676,-619,-1026,-1012,-992,-1000]} 1. d4 {[%emt 0:00:07]} Nf6 {[%emt 0:00:54]} 2. c4 {[%emt 0:00:14]} b6 {[%emt 0:00:41]} 3. Nf3 {[%emt 0:07:37]} Bb7 {[%emt 0:01:05]} 4. e3 {[%emt 0:01:24]} g6 {[%emt 0:03:47]} 5. Nc3 {[%emt 0:06:57]} Bg7 {[%emt 0:02:14]} 6. g3 {[%emt 0:00:06] A50: Queen's Fianchetto Defence (1 d4 Nf6 2 c4 b6).} d5 $146 {[%emt 0:05:24]} ({Predecessor:} 6... d6 7. Bg2 Nbd7 8. Qe2 c5 9. O-O O-O 10. b3 Qc8 11. Bb2 d5 12. cxd5 Nxd5 13. Nxd5 Bxd5 14. dxc5 Bxb2 15. Qxb2 Nxc5 {0-1 Pruun,R-Keres,P EST Youth-ch  1931 (5)}) 7. cxd5 {[%emt 0:13:18]} Nxd5 {[%emt 0:00:05]} 8. Bg2 {[%emt 0:04:05] The position is equal.} Nxc3 {[%emt 0:02:00]} 9. bxc3 {[%emt 0:02:25]} O-O {[%emt 0:00:06]} 10. O-O {[%emt 0:00:32]} c5 {[%emt 0:00:02]} 11. Bb2 {[%emt 0:14:44]} Qc7 {[%emt 0:01:13]} 12. Qa4 {[%emt 0:00:50]} Nd7 {[%emt 0:03:19]} 13. Rad1 {[%emt 0:06:02]} Rfd8 {[%emt 0:01:49]} 14. Rfe1 {[%emt 0:01:49]} Be4 {[%emt 0:05:16]} 15. Re2 {[%emt 0:08:44]} (15. Qc4 $11 e6 16. Ng5 Bxg2 17. Kxg2) 15... Qb7 $17 {[%emt 0:06:28]} 16. Ne1 {[%emt 0:00:30]} Bxg2 {[%emt 0:00:23]} 17. Nxg2 {[%emt 0:00:02]} b5 {[%emt 0:00:25]} 18. Qb3 {[%emt 0:00:33]} c4 {[%emt 0:04:36]} 19. Qc2 {[%emt 0:00:13]} e5 {[%emt 0:00:16]} 20. e4 {[%emt 0:07:46] [#]} Rac8 {[%emt 0:02:35]} (20... exd4 $1 $17 {aiming for ...d3.} 21. cxd4 Nb6) 21. Ne3 {[%emt 0:04:15] Black converts the advantage convincingly.} (21. d5 $1 $11 {remains equal.}) 21... exd4 {[%emt 0:03:38]} 22. cxd4 {[%emt 0:00:01]} c3 {[%emt 0:00:05] Black plays on the queen side and is better} 23. Bc1 {[%emt 0:00:09]} Nf6 {[%emt 0:02:33] Inhibits Nd5. Black is more active.} 24. e5 {[%emt 0:04:13]} Nd5 {[%emt 0:00:05]} 25. Qb3 {[%emt 0:00:10] [#] Prevents Nb4} (25. Nxd5 $17 Qxd5 26. h4) 25... a5 $1 $19 {[%emt 0:01:46]} 26. a3 {[%emt 0:01:11]} Bf8 {[%emt 0:07:10]} 27. Rd3 {[%emt 0:02:48]} (27. Nc2 $17) 27... b4 {[%emt 0:01:53]} 28. axb4 {[%emt 0:01:41]} axb4 $40 {[%emt 0:00:32][%mdl 128] White is in trouble.} 29. Nc2 $2 {[%emt 0:06:57]} (29. Re1 {might work better.}) 29... Qb5 {[%emt 0:01:25] Black is clearly winning.} 30. Ne1 {[%emt 0:01:01]} Qc4 {[%emt 0:00:02]} 31. Qb1 {[%emt 0:02:29]} b3 {[%emt 0:00:10]} 32. Kf1 {[%emt 0:02:38]} Rb8 {[%emt 0:01:28]} 33. Rf3 {[%emt 0:00:37]} Ra8 {[%emt 0:02:07]} 34. Bg5 {[%emt 0:00:51]} Ra2 {[%emt 0:00:29]} 35. Qd3 {[%emt 0:00:30]} Qxd3 {[%emt 0:00:38]} 36. Rxd3 {[%emt 0:00:07]} Rxe2 {[%emt 0:00:26]} 37. Kxe2 {[%emt 0:00:13]} b2 {[%emt 0:00:02] Weighted Error Value: White=0.74/Black=0.20 (precise)   Mistake:       	White=5     	Black=1      Inaccurate:     	White=4     	---        OK:         	White=7     	Black=13     Best:        	---       	Black=2} 0-1